Cogmind - Beta 16 @@@ ROGUE MODE // 2025.10.29 @ 14:49:17 // Winter2019/RPGLIKE Player: Red_Zig Result: Destroyed by D-53 Grenadier with Mini Grenade Launcher Performance ------------- Evolutions (0) 0 Regions Visited (2) 400 Robots Destroyed (24) 120 Value Destroyed (735) 735 Prototype IDs (0) 0 Alien Tech Used (0) 0 Bonus (75) 75 TOTAL SCORE: 1330 Bonus ------- High Alert Combat Kills 75 Cogmind --------- Core Integrity 0/700 Matter 206/300 Energy 250/250 System Corruption 4% Temperature Cool (0) Movement Walking (120) Location -10/Mines Parts ------- > --- POWER (1) -------- Ion Engine > --- PROPULSION (2) --- Aluminum Leg Aluminum Leg > --- UTILITY (2) ------ Improved Terrain Scanner Seismic Detector > --- WEAPON (4) ------- Autogun Autogun Autogun Autogun > --- INVENTORY (1) ---- Grenade Launcher Peak State ------------ > --- POWER ------------ Ion Engine > --- PROPULSION ------- Aluminum Leg Aluminum Leg > --- UTILITY ---------- Improved Terrain Scanner Seismic Detector > --- WEAPON ----------- Autogun Autogun Autogun Autogun > --- INVENTORY -------- Grenade Launcher [Rating: 15] Favorites ----------- Power Ion Engine Engine Ion Engine Propulsion Aluminum Leg Leg Aluminum Leg Utility Seismic Detector Device Seismic Detector Weapon Autogun Energy Gun EM Pulse Gun Energy Cannon Beam Cannon Ballistic Gun Autogun Launcher Grenade Launcher Build | -11 -10 -10 ------- Run | Yrd Mat Min Slots Evolved 5 | 3 2 . Power . | . . . Propulsion 1 | 1 . . Utility 1 | 1 . . Weapon 3 | 1 2 . Parts Attached 15 | 8 7 . Power 1 | 1 . . Engine 1 | 1 . . Core . | . . . Reactor . | . . . Propulsion 2 | 2 . . Treads . | . . . Leg 2 | 2 . . Wheel . | . . . Hover . | . . . Flight . | . . . Utility 2 | 2 . . Device 2 | 2 . . Storage . | . . . Processor . | . . . Hackware . | . . . Protection . | . . . Artifact . | . . . Weapon 10 | 3 7 . Energy Gun 1 | 1 . . Energy Cannon 2 | . 2 . Ballistic Gun 6 | 2 4 . Ballistic Cannon . | . . . Launcher 1 | . 1 . Special Weapon . | . . . Impact Weapon . | . . . Slashing Weapon . | . . . Piercing Weapon . | . . . Special Melee Weapon . | . . . Unidentified Prototypes . | . . . Parts Lost . | . . . Power . | . . . Propulsion . | . . . Utility . | . . . Weapon . | . . . Highest Loss Streak . | . . . To Critical Strikes . | . . . Average Backups . | . . 1 Power . | . . . Propulsion . | . . . Utility . | . . . Weapon . | . . 1 Tool/Special . | . . . Unused Backups . | . . . Power . | . . . Propulsion . | . . . Utility . | . . . Weapon . | . . . Tool/Special . | . . . Average Slot Usage (%) 99 | . 99 100 Engine 12 | . 13 11 Leg 25 | . 26 22 Device 25 | . 26 22 Energy Cannon 7 | . 8 . Ballistic Gun 21 | . 18 36 Launcher 4 | . 4 7 Peak Build Rating 15 | 9 15 15 Average Rating 10 | 5 10 14 On Entrance 8 | . 9 15 Avg Prop Armor Cover (%) . | . . . Naked Turns . | . . . Heaviest Build 19 | 9 19 19 Greatest Support 20 | 20 20 20 Greatest Overweight (x) . | . . . Average Overweight (x) . | . . . Largest Inventory Capacity 1 | . 1 1 Average Capacity . | . . 1 Most Carried 1 | . 1 1 Average Carried . | . . 1 Final Capacity 1 | . 1 1 Final Carried 1 | . 1 1 Class Distribution -------------------- 56% | Skirmisher 43% | Mutant Dominant Class ---------------- Skirmisher | -10/Materials Skirmisher | -10/Mines Resources | -11 -10 -10 ----------- Run | Yrd Mat Min Matter Collected 866 | 264 558 44 Remotely . | . . . Salvage Created 577 | 156 421 . Parts 52 | 13 39 . Haulers Intercepted 2 | . 2 . Recyclers Shooed 1 | . 1 . Parts Field Recycled . | . . . Retrieved Matter . | . . . Parts Self-Destructed . | . . . Prevented . | . . . Parts Restored . | . . . Kills | -11 -10 -10 ------- Run | Yrd Mat Min Combat Hostiles Destroyed 11 | . 11 . Guns 5 | . 5 . Cannons 1 | . 1 . AOE 5 | . 5 . Classes Destroyed 7 | 2 5 . Worker 4 | . 4 . Tunneler 4 | 4 . . Hauler 2 | . 2 . Recycler 1 | 1 . . Watcher 2 | . 2 . Swarmer 3 | . 3 . Grunt 8 | . 8 . Best Kill Streak 10 | 4 10 . Combat Bots Only 5 | . 5 . Max Kills in Single Turn 4 | 1 4 . Gunslinging . | . . . Exploded 3 | . 3 . Melee . | . . . Uniques/NPCs Destroyed . | . . . Combat | -11 -10 -10 -------- Run | Yrd Mat Min Hostile Shots Fired 40 | . 19 21 Missed 8 | . 4 4 Hits 32 | . 15 17 Projectile 32 | . 15 17 AOE 24 | . . 24 Damage Taken 1080 | . 247 833 Core 884 | . 205 679 Absorbed by Shields . | . . . Redirected to Core 695 | . 141 554 Core Remaining (%) 100 | 100 . . Volleys Fired 106 | 18 79 9 Largest 4 | 2 4 4 Hottest 120 | 40 120 92 Shots Fired 192 | 36 144 12 Gun 103 | 36 62 5 Cannon 54 | . 54 . Launcher 35 | . 28 7 Special . | . . . Kinetic 103 | 36 62 5 Thermal 54 | . 54 . Explosive 35 | . 28 7 Electromagnetic . | . . . Robot Hit Streak 21 | 7 21 1 Robot Miss Streak 4 | 4 4 . Penetration Max . | . . . Secondary Targets 1 | . 1 . Max Gunslinging Chain 1 | . 1 . Shots Hit Robots 74 | 21 52 1 Core Hits 40 | 9 30 1 Critical Kills . | . . . Critical Parts Destroyed . | . . . Critical Strikes . | . . . Melee Attacks . | . . . Impact . | . . . Slashing . | . . . Piercing . | . . . Sneak Attacks . | . . . Combat Hostiles . | . . . Follow-up Attacks . | . . . Damage Inflicted 1481 | 162 1301 18 Guns 532 | 162 352 18 Cannons 174 | . 174 . Explosions 775 | . 775 . Melee . | . . . Ramming . | . . . Kinetic 532 | 162 352 18 Thermal 174 | . 174 . Explosive 775 | . 775 . Electromagnetic . | . . . Impact . | . . . Slashing . | . . . Piercing . | . . . Highest Corruption 4 | . 4 4 Average Corruption 3 | . 3 4 Corruption Purged . | . . . Corruption Blocked . | . . . Effects 3 | . 1 2 Message Errors 1 | . . 1 Matter Fused 1 | . . 1 Heat Flow Errors 1 | . 1 . Overload Shots . | . . . Overflow Damage 11 | . 11 . Projectiles . | . . . Explosions 11 | . 11 . Melee . | . . . Knockbacks . | . . . Impact . | . . . Kinetic . | . . . Secondary . | . . . Self-Inflicted Damage 51 | . 51 . Shots 3 | . 3 . Rammed . | . . . Targets Rammed . | . . . Kicked . | . . . Crushed . | . . . Highest Temperature 137 | . 137 4 Average Temperature 15 | . 16 3 Received Heat Transfer 114 | . 114 . Siege Activations . | . . . Martial Activations . | . . . Shielding Activations . | . . . Robots Disrupted . | . . . Combat Hostiles . | . . . Robots Corrupted . | . . . Combat Hostiles . | . . . Parts Fried . | . . . Impact Corruptions . | . . . Robots Melted 1 | . 1 . Combat Hostiles . | . . . Parts Melted 3 | . 3 . Heat Transferred 370 | . 370 . Parts Sabotaged . | . . . Parts Stolen . | . . . Parts Stripped . | . . . Power Chain Reactions . | . . . Alert | -11 -10 -10 ------- Run | Yrd Mat Min Maximum Alert Level 2 | . 2 1 Low Security (%) 25 | 100 13 37 Level 1 10 | . . 62 Level 2 64 | . 85 . Level 3 . | . . . Level 4 . | . . . Level 5 . | . . . High Security . | . . . Max Security . | . . . Peak Influence 614 | 10 614 239 Initial 218 | . . 218 Average 393 | 2 481 206 Influence Increases 1066 | 25 978 63 Destroy 0b10 Robot/C 220 | . 220 . Destroy 0b10 Robot/NC 65 | 25 40 . Destroy Leader 58 | . 58 . Disable Machine 480 | . 450 30 Destroy Structure 243 | . 210 33 Influence Decreases 895 | 25 418 452 Entered New Map 342 | . . 342 Time Decay 553 | 25 418 110 Squads Dispatched 1 | . 1 . Investigation . | . . . Extermination . | . . . Reinforcement 1 | . 1 . Assault . | . . . Garrison . | . . . Intercept . | . . . Searches Triggered . | . . . Construction Impeded . | . . . Haulers Reinforced . | . . . Active Scanning Responses . | . . . Cargo Convoy Interrupts . | . . . Stealth | -11 -10 -10 --------- Run | Yrd Mat Min Distress Signals 1 | . 1 . Communications Jammed . | . . . Distress Signals . | . . . Times Spotted 16 | . 14 2 Peak Tracking Total 3 | . 3 2 Tactical Retreats . | . . . Traps | -11 -10 -10 ------- Run | Yrd Mat Min Traps Triggered 2 | . 2 . Indirectly . | . . . Trap Hack Attempts . | . . . Triggered . | . . . Disarmed . | . . . Reprogrammed . | . . . Reused . | . . . Traps Extracted . | . . . Installed . | . . . Triggered . | . . . Machines | -11 -10 -10 ---------- Run | Yrd Mat Min Machines Disabled 32 | . 30 2 Max in Single Turn 5 | . 5 1 Machines Repaired . | . . . Machines Dismantled . | . . . Machines Sabotaged . | . . . Overloaded Fab Kills . | . . . Hacking | -11 -10 -10 --------- Run | Yrd Mat Min Machines Accessed 3 | . 2 1 Terminals . | . . . Fabricators . | . . . Repair Stations . | . . . Recycling Units 2 | . 2 . Scanalyzers . | . . . Garrison Access . | . . . Total Hacks 7 | . 6 1 Successful 4 | . 3 1 Failed 3 | . 3 . Catastrophic . | . . . Database Lockouts . | . . . Manual 6 | . 6 . Terminals . | . . . Fabricators . | . . . Repair Stations . | . . . Recycling Units 6 | . 6 . Scanalyzers . | . . . Garrison Access . | . . . Terminal Hacks 1 | . . 1 Open Door 1 | . . 1 Fabricator Hacks . | . . . Repair Station Hacks . | . . . Recycling Unit Hacks . | . . . Scanalyzer . | . . . Garrison Access Hacks . | . . . Unauthorized Hacks 3 | . 3 . Terminals . | . . . Fabricators . | . . . Repair Stations . | . . . Recycling Units 3 | . 3 . Monitor 1 | . 1 . Reject 2 | . 2 . Scanalyzers . | . . . Garrison Access . | . . . Data Cores Recovered . | . . . Used . | . . . Hacking Detections 1 | . 1 . Full Trace Events . | . . . Feedback Events . | . . . Feedback Blocked . | . . . Robot Schematics Acquired . | . . . Robots Built . | . . . Authchips . | . . . Time . | . . . Total Robot Build Rating . | . . . Part Schematics Acquired . | . . . Parts Built . | . . . Authchips . | . . . Time . | . . . Total Part Build Rating . | . . . Part Studies Acquired . | . . . Parts Repaired . | . . . Time . | . . . Parts Recycled . | . . . Recycled Matter . | . . . Retrieved Matter . | . . . Retrieved Components . | . . . Parts Scanalyzed . | . . . Part Schematics Acquired . | . . . Parts Damaged . | . . . Bothacking | -11 -10 -10 ------------ Run | Yrd Mat Min Used RIF Installer . | . . . Robots Hacked . | . . . Non-combat . | . . . Combat . | . . . Robot Hacks Applied . | . . . Relay Couplers Released . | . . . Fabnet Peak Effective % . | . . . Robots Rewired . | . . . Allies Hacked . | . . . Hacks Repelled . | . . . Allies | -11 -10 -10 -------- Run | Yrd Mat Min Total Allies . | . . . Largest Group . | . . . Highest-Rated Group . | . . . Highest-Rated Ally . | . . . Total Orders . | . . . Ally Attacks . | . . . Total Damage . | . . . Kills . | . . . Allies Corrupted . | . . . Allies Melted . | . . . Intel | -11 -10 -10 ------- Run | Yrd Mat Min Active Infowar (turns) 1328 | 67 1041 220 Terrain 1275 | 14 1041 220 Seismic 1328 | 67 1041 220 Robot Analysis Total . | . . . Derelict Logs Recovered . | . . . Drone Launches . | . . . Drone Recoveries . | . . . Exploration | -11 -10 -10 ------------- Run | Yrd Mat Min Turns Passed 1389 | 128 1041 220 Spaces Moved 796 | 61 572 163 Core 5 | 5 . . Treads . | . . . Legs 791 | 56 572 163 Wheels . | . . . Hover . | . . . Flight . | . . . Fastest Speed 50 | 50 120 120 Average Speed 119 | 114 120 120 Slowest Speed 120 | 120 120 120 Overloaded Moves . | . . . Propulsion Burnouts . | . . . Robots Hopped . | . . . Potential Cave-ins . | . . . Cave-ins Triggered . | . . . Exploration Rate (%) 49 | 5 93 51 Regions Visited 2 Branch Regions 1 Pre-discovered Areas . | . . . Known Exits Taken . | . . . Unknown Exits Taken 2 | 1 1 . Scrap Searched 1 | . . 1 Spaces Dug 15 | . . 15 Terrain Destroyed 287 | . 243 44 Melee . | . . . Projectile . | . . . AOE 287 | . 243 44 Terrain Rammed . | . . . Walls Destroyed . | . . . Machines Disabled . | . . . Actions | -11 -10 -10 --------- Run | Yrd Mat Min Total 1066 | 87 803 176 Wait 129 | . 129 . Move 794 | 60 571 163 Hop . | . . . Pick Up 1 | . 1 . Fast Attach 14 | 8 6 . Attach . | . . . Detach . | . . . Swap 6 | . 2 4 Drop 5 | 1 4 . Fire 106 | 18 79 9 Melee . | . . . Ram . | . . . Kick . | . . . Crush . | . . . Escape Stasis . | . . . Rewire . | . . . Trap . | . . . Miscellaneous 11 | . 11 . Route ------- -11/Scrapyard -10/Materials (discovered 5 exits: [*Mat x3] / *Min x2) -10/Mines (discovered 2 exits: [*Mat x2]) History --------- Turn | Location | Event 1 | -11/Scrapyard | Upgraded with Propulsion slot (x1) 1 | -11/Scrapyard | Upgraded with Utility slot (x1) 1 | -11/Scrapyard | Upgraded with Weapon slot (x1) 5 | -11/Scrapyard | Discovered new exit (range 15) 129 | -11/Scrapyard | Entered Materials 276 | -10/Materials | Reached level 2 318 | -10/Materials | Build established: Mutant 337 | -10/Materials | Discovered new exit (range 5) 418 | -10/Materials | Discovered new exit (range 16) 495 | -10/Materials | Discovered new exit (range 14) 576 | -10/Materials | Discovered new exit (range 12) 684 | -10/Materials | Discovered new exit (range 9) 806 | -10/Materials | Reached level 3 908 | -10/Materials | Build established: Skirmisher 921 | -10/Materials | Upgraded with Weapon slot (x2) 1170 | -10/Materials | Entered Mines 1213 | -10/Mines | Discovered new exit (range 10) 1323 | -10/Mines | Assembled infested the area 1327 | -10/Mines | Found the Drone Emporium 1375 | -10/Mines | Core integrity fell below 50% 1379 | -10/Mines | Met 8R-AWN 1385 | -10/Mines | Core integrity fell below 20% 1385 | -10/Mines | Discovered new exit (range 18) 1390 | -10/Mines | Destroyed by D-53 Grenadier with Mini Grenade Launcher Last Messages --------------- 01349_ U5-4IV(g) destroyed. 01356_ The unstable cave ceiling collapses. 01358_ T-07 Excavator destroyed. 8R-AWN: Hm, I'm not getting any readings that show these Assembled are different than what we have already... But you... you look interesting. Maybe they'll want to see you. Come along little bot, it's safer with us than out here, anyway. 01380_ HV Slug penetrates as-92103. 01380_ as-92103 suffers critical hit (Destroy). 01380_ as-92103 destroyed. 01382_ K-01 Serf collects debris. 01382_ HV Slug penetrates as-75353. 01382_ as-75353 suffers critical hit (Destroy). 01382_ as-75353 destroyed. 01385_ The unstable cave ceiling collapses. 01385_ EXIT=FOUND 01385_ K-01 Serf collects debris. Map ----- +----------------------------------------------------+ | | | | | | | | | | | | | | | | | | | | | | | | | ????????????????????#????#?#?###???#?#??????? | | ????????????????????????#??#??????#???#??#??? | | ????????????????##??#?###?######????#???##??? | | ???????????????????####??## ##??#?#?#??#?? | | ????????????? ?#???????#?# ##?#???#####? | | ????????????????#???#?#??? ##??##?#?#??? | | ??????????????? ???##?##?# ####????##??? | | ??????????????? ????#??##?# ########???? | | ????????????????? ??#?#;## ##?## ##??? | | ?????????????? ???#?##### ### ###? | | ??????????###??#???### #### | | ?????????# *%### ##?# | | ?????????# =%k%%!% #?? | | ?????????# < %%%%% @ #?# | | ?????????# %g%%#;%% % d #?# | | ??????????????????###% %% ##? | | ???????????????#??#?###%% # d ## | | ?????????????????#??? ## < #### #? | | ???????????????#?#?#?########?# ### | | ?????????????#?##???###?###??### #?# | | ??????????????#??#?#?#?#?######### ### | | ????????????????##########?######### # #?# | | ???????????????#??#??####?#?####?####### ##? | | ?????????????##??###################?### #?# | | ???????????? ? ###?######?###?########## #?# | | ????????????##?#######?########## ### ### | | ????????????## ????##?######### =% #?# | | ???????????#???###?#?######### ####### | | ????????????#? ? ?##### # ##?## | | ???????????####?## #### ! ###### | | ???????????##?#### #?# ###?? | | ??????????#? ??###?#### # #?#? | | ????????? ? ?### ## % # ##?? | | ???????????? ?# ###?# | | ????????????? ##### # ######?## | | ????????##### #### ###?###?#? | | ????????? ? ? ? ## #######?##? | | ????????? ?? ## ### ########?#??? | +----------------------------------------------------+ Best States ------------- Heat Dissipation 49 Energy Generation 10 Energy Capacity 250 Matter Stores 300 Matter Capacity 300 Sight Range 18 Robot Scan Range 6 Terrain Scan Range 16 Terrain Scan Density 310 Evasion (%) 55 Item Schematics ----------------- None Robot Schematics ------------------ None Fabricated ------------ Nothing Repaired ---------- Nothing Studied --------- None Alien Tech Used ----------------- None Achievements -------------- None Challenges ------------ None RPGLIKE | -11 -10 -10 --------- Run | Yrd Mat Min Levels Raised 2 | . 2 . XP Earned 7286 | 3000 3636 650 XP Spent 5825 | 1770 4055 . Upgrades 22 | 6 16 . Propulsion Slot 1 | 1 . . Utility Slot 1 | 1 . . Weapon Slot 3 | 1 2 . Core Integrity 2 | . 2 . Heat Dissipation 4 | . 4 . Inventory Capacity 1 | . 1 . Sight Range 2 | . 2 . Sensor Range 3 | . 3 . Terrain Scan Density 3 | 3 . . Ranged Accuracy 2 | . 2 . Protomatter Created 148 | . 148 . Integrity Restored 213 | . 213 . Core 178 | . 178 . Parts 35 | . 35 . Protomatter Decayed 62 | . 28 34 Game ------ Seed SurgeClaymoresRifle Manual? 0 Play Time 00:17:48 Cumulative 171.6 hours Start 2025.10.29 @ 14:31:54 End 2025.10.29 @ 14:49:17 Sessions 1 Manual Loads 0 Difficulty Rogue Special Mode Winter2019/RPGLIKE Game No. 139 Rogue 127 Adventurer 12 Explorer 0 Win Type - Total 2 Types 2/0/0/0/0/0/0/0/0/0 Lore% 53 Gallery% 56 Achievement% 37 Wizard Run 0 Options --------- Layout 2 ASCII 0 Keyboard 0 Movement Mouse Keybinds 0 Fullscreen 1 Font 24/Smallcaps Map View 50x44 Zoom Use 0% Tactical HUD 1 Map Filters NONE Filters NONE Steam 1 RUN: a5b5e322-7f0a-4e82-ade8-241fde363824